bitfinex/quotes_SOLUSD_20250609
["timestamp","ask_amount","ask_price","bid_price","bid_amount"]
[1749466636910,15.53949569,155.64,155.6,18.64964886]
[1749466637301,21.96461174,155.64,155.6,18.64964886]
[1749466638908,21.96431058,155.65,155.6,18.64964886]
[1749466640210,15.53949569,155.65,155.6,25.07629527]
[1749466640516,15.53949569,155.65,155.6,18.64964886]
[1749466640517,21.96426861,155.65,155.6,18.64964886]
[1749466641205,15.53949569,155.64,155.6,18.64964886]
[1749466641390,15.53949569,155.65,155.6,18.64964886]
[1749466642107,21.96450626,155.65,155.6,18.64964886]
[1749466643688,21.96450626,155.65,155.58,18.64964886]
[1749466643689,15.53949569,155.63,155.58,18.64964886]
[1749466643892,15.53949569,155.63,155.58,34.18914455]
[1749466644092,15.53949569,155.62,155.58,34.18914455]
[1749466644286,15.53949569,155.63,155.59,15.53949569]
[1749466644500,15.53949569,155.63,155.58,34.18914455]
[1749466644810,15.53949569,155.62,155.58,18.64964886]
[1749466645182,15.53949569,155.61,155.58,18.64964886]
[1749466645390,15.53949569,155.61,155.56,15.53949569]
[1749466646511,21.9662062,155.61,155.56,15.53949569]
[1749466646817,21.9662062,155.61,155.56,21.96777734]
[1749466647118,15.53949569,155.61,155.56,21.96777734]
[1749466647431,21.96593035,155.61,155.56,21.96777734]
[1749466647787,21.96593035,155.61,155.56,15.53949569]
[1749466648017,15.53949569,155.6,155.56,15.53949569]
[1749466648509,15.53949569,155.59,155.55,26.0]
[1749466648895,15.53949569,155.58,155.53,17.13799569]
[1749466649094,15.53949569,155.57,155.54,18.64964886]
[1749466649611,15.53949569,155.58,155.54,18.64964886]
[1749466650115,6.42683284,155.6,155.54,34.18914455]
[1749466650312,15.53949569,155.6,155.56,15.53949569]
[1749466650496,15.53949569,155.59,155.55,15.53949569]
[1749466650700,15.53949569,155.59,155.54,15.53949569]
[1749466651800,15.53949569,155.59,155.55,18.64964886]
[1749466651998,15.53949569,155.6,155.56,15.53949569]
[1749466652713,32.60587984,155.61,155.56,15.53949569]
[1749466653209,26.61329035,155.61,155.56,9.5469062]
[1749466654123,26.61329035,155.61,155.57,9.5469062]
[1749466654693,9.5469062,155.59,155.55,18.64964886]
[1749466654893,9.5469062,155.58,155.54,18.64964886]
[1749466655501,9.5469062,155.58,155.54,28.19655506]
[1749466656218,15.97455475,155.58,155.54,18.64964886]
[1749466657307,9.5469062,155.57,155.54,18.64964886]
[1749466657509,9.5469062,155.56,155.53,18.64964886]
[1749466659707,9.5469062,155.55,155.52,18.64964886]
[1749466659907,9.5469062,155.53,155.49,1.5857]
[1749466660117,9.5469062,155.52,155.49,18.64964886]
[1749466661215,9.5469062,155.53,155.49,18.64964886]
[1749466662128,9.5469062,155.53,155.49,28.19655506]
[1749466662328,15.97539671,155.56,155.52,9.5469062]
[1749466663233,41.4113355,155.58,155.52,15.97692378]
[1749466663234,6.42809885,155.57,155.52,15.97692378]
[1749466663462,10.62,155.58,155.53,9.5469062]
[1749466663732,26.59448265,155.58,155.54,9.5469062]
[1749466663913,26.59448265,155.58,155.53,28.19655506]
[1749466664236,9.5469062,155.57,155.52,9.5469062]
[1749466664420,9.5469062,155.55,155.51,40.08]
[1749466664735,9.5469062,155.56,155.51,49.6269062]
[1749466664912,17.04757645,155.58,155.51,49.6269062]
[1749466664913,9.5469062,155.57,155.52,9.5469062]
[1749466665328,9.5469062,155.57,155.53,9.5469062]
[1749466665929,15.97500941,155.57,155.53,9.5469062]
[1749466666630,15.97500941,155.57,155.52,25.0794934]
[1749466666822,15.97500941,155.57,155.52,28.19655506]
[1749466667017,9.5469062,155.56,155.52,18.64964886]
[1749466667326,9.5469062,155.56,155.52,28.19655506]
[1749466667521,15.97549532,155.56,155.52,28.19655506]
[1749466667730,9.5469062,155.55,155.51,40.08]
[1749466668336,9.5469062,155.54,155.5,18.64964886]
[1749466668528,9.5469062,155.53,155.49,18.64964886]
[1749466669825,15.97673841,155.53,155.49,18.64964886]
[1749466674832,9.5469062,155.52,155.48,18.64964886]
[1749466675032,9.5469062,155.49,155.46,18.64964886]
[1749466675227,9.5469062,155.49,155.45,11.1326062]
[1749466675620,10.62,155.52,155.47,9.5469062]
[1749466675822,10.62,155.52,155.49,9.5469062]
[1749466676145,6.42921435,155.54,155.5,9.5469062]
[1749466676342,15.97612055,155.54,155.49,9.5469062]
[1749466677836,15.97614547,155.54,155.5,9.5469062]
[1749466679546,9.5469062,155.54,155.5,15.97771033]
[1749466679739,10.62,155.55,155.52,9.5469062]
[1749466680144,17.04887434,155.55,155.51,28.19655506]
[1749466680330,10.62,155.55,155.51,28.19655506]
[1749466680649,20.1669062,155.55,155.51,28.19655506]
[1749466681145,20.1669062,155.55,155.51,18.64964886]
[1749466681451,9.5469062,155.54,155.5,9.5469062]
[1749466681628,15.97644847,155.54,155.5,9.5469062]
[1749466681830,9.5469062,155.53,155.49,9.5469062]
[1749466682425,9.5469062,155.53,155.49,18.64964886]
[1749466682627,9.5469062,155.53,155.49,28.19655506]
[1749466683656,15.97668887,155.53,155.49,28.19655506]
[1749466684354,15.97668887,155.53,155.48,40.08]
[1749466684355,6.42978267,155.53,155.48,40.08]
[1749466684651,9.5469062,155.52,155.48,40.08]
[1749466684954,9.5469062,155.52,155.48,49.6269062]
[1749466686249,15.97725537,155.52,155.48,49.6269062]
[1749466687130,15.97725537,155.52,155.47,18.64964886]
[1749466687350,15.97725537,155.52,155.47,28.19655506]
[1749466688957,9.5469062,155.52,155.48,9.5469062]
[1749466690547,9.5469062,155.53,155.49,9.5469062]
[1749466691567,6.42921435,155.54,155.49,9.5469062]
[1749466691742,15.97612055,155.54,155.49,9.5469062]
[1749466692668,9.5469062,155.53,155.49,9.5469062]
[1749466694657,15.97668931,155.53,155.49,9.5469062]
[1749466695452,15.97668931,155.53,155.47,25.08162513]
[1749466695654,15.97668931,155.53,155.48,9.5469062]
[1749466696362,15.97668931,155.53,155.49,9.5469062]
[1749466696569,17.02880102,155.55,155.5,9.5469062]
[1749466696750,26.57570722,155.55,155.5,9.5469062]
[1749466698263,10.6,155.55,155.52,9.5469062]
[1749466698438,17.02880731,155.55,155.52,9.5469062]
[1749466699039,17.02880731,155.55,155.51,9.5469062]
[1749466700866,15.9745795,155.58,155.54,9.5469062]
[1749466702442,6.4276733,155.58,155.55,9.5469062]
[1749466702742,6.42683386,155.6,155.57,9.5469062]
[1749466703148,17.02644852,155.61,155.57,9.5469062]
[1749466703863,26.57335472,155.61,155.57,9.5469062]
[1749466704280,10.6,155.61,155.58,9.5469062]
[1749466704441,10.6,155.61,155.6,9.5469062]
[1749466704771,43.46563031,155.63,155.6,9.5469062]
[1749466704772,4.80690151,155.63,155.6,9.5469062]
[1749466705162,11.23213692,155.64,155.6,9.5469062]
[1749466705350,6.42523541,155.64,155.6,9.5469062]
[1749466705750,11.23213692,155.64,155.6,9.5469062]
[1749466705965,6.42523541,155.64,155.6,9.5469062]
[1749466706675,6.42523541,155.64,155.61,9.5469062]
[1749466706849,26.57172766,155.65,155.61,9.5469062]
[1749466707053,26.57172766,155.65,155.6,9.5469062]
[1749466707270,9.5469062,155.64,155.6,9.5469062]
[1749466707449,26.57172766,155.65,155.6,9.5469062]
[1749466707968,17.02482146,155.65,155.61,9.5469062]
[1749466708157,10.6,155.65,155.62,9.5469062]
[1749466708511,17.02472209,155.65,155.61,9.5469062]
[1749466708779,26.57162829,155.65,155.61,9.5469062]
[1749466709154,26.57162829,155.65,155.6,28.19655506]
[1749466709354,9.5469062,155.64,155.6,28.19655506]
[1749466710155,26.57162829,155.65,155.6,28.19655506]
[1749466711170,26.57162829,155.65,155.58,26.0]
[1749466711171,9.5469062,155.63,155.58,26.0]
[1749466711474,9.5469062,155.63,155.58,35.5469062]
[1749466711778,9.5469062,155.6,155.56,18.64964886]
[1749466711960,9.5469062,155.6,155.56,28.19655506]
[1749466712379,15.97399259,155.6,155.56,28.19655506]
[1749466712682,9.5469062,155.59,155.55,18.64964886]
[1749466712853,9.5469062,155.59,155.51,6.5672]
[1749466712854,9.5469062,155.56,155.51,16.1141062]
[1749466713055,9.5469062,155.54,155.49,48.03027732]
[1749466713254,9.5469062,155.54,155.5,18.64964886]
[1749466714168,9.5469062,155.53,155.5,18.64964886]
[1749466714575,6.42923391,155.54,155.47,46.405]
[1749466714576,9.5469062,155.51,155.47,6.385]
[1749466714875,9.5469062,155.51,155.48,18.64964886]
[1749466715475,6.42923391,155.54,155.48,9.5469062]
[1749466715680,15.97614011,155.54,155.5,18.64964886]
[1749466715867,15.97614011,155.54,155.5,28.19655506]
[1749466716783,15.97614011,155.54,155.5,18.64964886]
[1749466718057,9.5469062,155.54,155.5,18.64964886]
[1749466718262,9.5469062,155.56,155.52,18.64964886]
[1749466718467,15.9752187,155.57,155.52,9.5469062]
[1749466718781,10.6,155.59,155.54,9.5469062]
[1749466718972,20.1469062,155.59,155.54,9.5469062]
[1749466719178,9.5469062,155.58,155.54,18.64964886]
[1749466719884,15.97469101,155.58,155.54,18.64964886]
[1749466720689,6.42778481,155.58,155.54,18.64964886]
[1749466720880,15.97469101,155.58,155.54,18.64964886]
[1749466721591,15.97499345,155.57,155.54,18.64964886]
[1749466721772,15.97499345,155.57,155.53,9.5469062]
[1749466721973,15.97499345,155.57,155.52,28.19655506]
[1749466722879,9.5469062,155.56,155.52,28.19655506]
[1749466724171,9.5469062,155.57,155.52,28.19655506]
[1749466724684,9.5469062,155.56,155.52,28.19655506]
[1749466724860,9.5469062,155.54,155.51,18.64964886]
[1749466725060,15.97612982,155.54,155.51,18.64964886]
[1749466725272,9.5469062,155.54,155.51,18.64964886]
[1749466725583,15.97584037,155.55,155.51,28.19655506]
[1749466725791,9.5469062,155.56,155.52,9.5469062]
[1749466726285,15.97488074,155.57,155.52,9.5469062]
[1749466727192,15.97537336,155.56,155.52,9.5469062]
[1749466727486,6.42846716,155.56,155.52,9.5469062]
[1749466727688,15.97537336,155.56,155.52,9.5469062]
[1749466728074,9.5469062,155.55,155.51,28.19655506]
[1749466728591,9.5469062,155.55,155.5,6.43072255]
[1749466728592,9.5469062,155.54,155.49,28.19655506]
[1749466729267,6.4283045,155.57,155.51,9.5469062]
[1749466729466,9.5469062,155.56,155.52,9.5469062]
[1749466730175,9.5469062,155.56,155.51,9.5469062]
[1749466730477,15.97539502,155.56,155.52,9.5469062]
[1749466731389,15.97539502,155.56,155.51,28.19655506]
[1749466731588,6.42848882,155.56,155.51,34.62690695]
[1749466731895,6.42848882,155.56,155.52,9.5469062]
[1749466732106,15.97539502,155.56,155.51,18.64964886]
[1749466732264,15.97539502,155.56,155.52,9.5469062]
[1749466733362,15.97539502,155.56,155.51,28.19655506]
[1749466735990,9.5469062,155.57,155.53,28.19655506]
[1749466736161,15.97473908,155.58,155.54,9.5469062]
[1749466736363,9.5469062,155.56,155.51,9.5469062]
[1749466736567,9.5469062,155.56,155.52,18.64964886]
[1749466737492,6.42880102,155.55,155.52,18.64964886]
[1749466737671,15.97529988,155.56,155.52,28.19655506]
[1749466738890,6.42839368,155.56,155.52,28.19655506]
[1749466739392,15.97529988,155.56,155.51,18.64964886]
[1749466739573,9.5469062,155.55,155.51,28.19655506]
[1749466739774,9.5469062,155.55,155.5,28.19655506]
[1749466739976,9.5469062,155.52,155.48,9.5469062]
[1749466740180,9.5469062,155.51,155.48,18.64964886]
[1749466740590,9.5469062,155.51,155.47,18.64964886]
[1749466741380,9.5469062,155.52,155.48,9.5469062]
[1749466741575,26.556944,155.53,155.48,9.5469062]
[1749466741879,10.58,155.53,155.5,28.19655506]
[1749466742195,10.58,155.53,155.51,9.5469062]
[1749466742380,10.58,155.53,155.5,28.19655506]
[1749466742988,10.58,155.53,155.48,6.43167555]
[1749466742989,10.58,155.53,155.51,9.5469062]
[1749466743193,10.58,155.53,155.49,18.64964886]
[1749466743194,10.58,155.53,155.52,9.5469062]
[1749466743501,15.97580069,155.55,155.5,28.19655506]
[1749466743692,9.5469062,155.54,155.5,28.19655506]
[1749466744405,9.5469062,155.53,155.48,26.28432314]
[1749466744599,9.5469062,155.53,155.49,18.64964886]
[1749466745094,9.5469062,155.52,155.46,26.0]
[1749466745278,9.5469062,155.51,155.48,18.64964886]
[1749466745479,15.97756753,155.51,155.48,18.64964886]
[1749466745695,15.97756753,155.51,155.47,18.64964886]
[1749466746407,9.5469062,155.49,155.45,11.1260062]
[1749466746613,9.5469062,155.48,155.45,18.64964886]
[1749466746989,9.5469062,155.49,155.45,18.64964886]
[1749466747189,9.5469062,155.49,155.45,9.5469062]
[1749466748510,15.97819608,155.49,155.45,9.5469062]
[1749466749008,6.43128988,155.49,155.45,9.5469062]
[1749466749380,15.97819608,155.49,155.45,9.5469062]
[1749466750413,9.5469062,155.49,155.45,9.5469062]
[1749466750786,15.97792717,155.5,155.45,9.5469062]
[1749466752613,15.97836509,155.49,155.45,9.5469062]
[1749466754014,15.97786417,155.5,155.45,15.97977693]
[1749466754220,15.97786417,155.5,155.45,9.5469062]
[1749466754422,9.5469062,155.49,155.45,9.5469062]
[1749466754595,15.97852931,155.49,155.45,9.5469062]
[1749466755014,15.97852931,155.49,155.44,28.19655506]
[1749466755230,9.5469062,155.45,155.43,3779.83409153]
[1749466755523,9.5469062,155.44,155.43,3779.83409153]
[1749466756106,10.56,155.45,155.43,3779.83409153]
[1749466756414,9.5469062,155.44,155.43,3779.83409153]
[1749466757090,15.98025668,155.44,155.43,3779.83409153]
[1749466759889,41.98025668,155.44,155.43,3779.83409153]
[1749466761514,32.43335048,155.44,155.43,3779.83409153]
[1749466761743,1.5839,155.48,155.43,3779.83409153]
[1749466762044,52.53871021,155.48,155.43,3789.38099773]
[1749466762327,9.5469062,155.47,155.43,3789.38099773]
[1749466763309,26.53871021,155.48,155.43,3789.38099773]
[1749466764500,15.97914229,155.47,155.43,3779.83409153]
[1749466765703,9.5469062,155.47,155.43,3789.38099773]
[1749466765904,10.56,155.48,155.44,9.5469062]
[1749466766099,10.56,155.48,155.45,9.5469062]
[1749466766405,26.53864394,155.48,155.44,9.5469062]
[1749466766610,20.1069062,155.48,155.44,28.19655506]
[1749466766824,10.56,155.48,155.44,28.19655506]
[1749466767836,26.53863152,155.48,155.44,28.19655506]
[1749466768706,20.1069062,155.48,155.44,34.62990493]
[1749466769024,20.1069062,155.48,155.44,28.19655506]
[1749466769234,10.56,155.48,155.45,28.19655506]
[1749466769826,10.56,155.48,155.46,9.5469062]
[1749466771731,10.56,155.48,155.45,28.19655506]
[1749466772524,10.56,155.48,155.45,18.64964886]
[1749466773555,10.56,155.48,155.45,28.19655506]
[1749466774453,10.56,155.48,155.45,34.62947112]
[1749466774948,10.56,155.48,155.45,28.19655506]
[1749466775448,10.56,155.48,155.45,18.64964886]
[1749466775817,26.53878177,155.48,155.44,40.0]
[1749466776252,9.5469062,155.47,155.44,40.0]
[1749466776437,9.5469062,155.47,155.43,3779.83409153]
[1749466776636,9.5469062,155.44,155.43,3798.48374039]
[1749466783335,6.43261983,155.46,155.43,3798.48374039]
[1749466783534,9.5469062,155.44,155.43,3798.48374039]
[1749466784153,9.5469062,155.44,155.43,3779.83409153]
[1749466784648,6.43225707,155.47,155.43,3779.83409153]
[1749466784839,9.5469062,155.46,155.43,3786.26780913]
[1749466785445,9.5469062,155.45,155.43,3779.83409153]
[1749466791344,9.5469062,155.46,155.44,18.64964886]
[1749466791663,20.1069062,155.48,155.44,18.64964886]
[1749466792346,20.1069062,155.48,155.45,6.43293663]
[1749466792545,9.5469062,155.47,155.45,6.43293663]
[1749466792749,20.1069062,155.48,155.45,6.43293663]
[1749466792949,9.5469062,155.47,155.45,6.43293663]
[1749466793149,9.5469062,155.47,155.44,25.08287192]
[1749466793971,16.9918903,155.48,155.44,18.64964886]
[1749466794147,9.5469062,155.45,155.44,18.64964886]
[1749466794348,9.5469062,155.46,155.44,18.64964886]
[1749466794866,26.0,155.51,155.44,34.629786]
[1749466795055,9.5469062,155.5,155.46,9.5469062]
[1749466795449,9.5469062,155.5,155.47,18.64964886]
[1749466796076,9.5469062,155.51,155.47,18.64964886]
[1749466796758,9.5469062,155.51,155.47,25.08147577]
[1749466797467,9.5469062,155.5,155.47,25.08147577]
[1749466797676,9.5469062,155.49,155.47,25.08147577]
[1749466798177,9.5469062,155.49,155.47,25.081702]
[1749466799069,9.5469062,155.5,155.47,25.081702]
[1749466799776,9.5469062,155.49,155.47,25.081702]
[1749466799971,9.5469062,155.49,155.47,18.64964886]
[1749466800346,9.5469062,155.51,155.47,34.62855446]
[1749466800560,20.0869062,155.52,155.48,0.28432314]
[1749466800752,9.5469062,155.55,155.51,28.19655506]
[1749466801166,9.5469062,155.53,155.51,18.64964886]
[1749466801544,10.54,155.57,155.51,18.64964886]
[1749466801751,9.5469062,155.53,155.51,25.0798616]
[1749466801951,9.5469062,155.54,155.51,25.0798616]
[1749466802166,9.5469062,155.55,155.51,25.0798616]
[1749466802474,9.5469062,155.55,155.51,18.64964886]
[1749466802659,9.5469062,155.52,155.49,39.96]
[1749466802862,9.5469062,155.52,155.5,18.64964886]
[1749466803060,9.5469062,155.53,155.5,18.64964886]
[1749466803649,16.96832573,155.57,155.5,18.64964886]
[1749466803887,9.5469062,155.54,155.5,34.62704822]
[1749466804055,9.5469062,155.53,155.5,25.08014202]
[1749466804257,10.54,155.57,155.51,0.28432314]
[1749466804585,9.5469062,155.58,155.53,28.19655506]
[1749466804873,9.5469062,155.54,155.49,18.64964886]
[1749466805064,9.5469062,155.54,155.43,3779.83409153]
[1749466805065,9.5469062,155.5,155.43,3779.83409153]
[1749466805265,9.5469062,155.44,155.43,3779.83409153]
[1749466805469,9.5469062,155.44,155.43,3798.48374039]
[1749466805774,9.5469062,155.46,155.44,18.64964886]
[1749466806676,9.5469062,155.46,155.44,25.08298294]
[1749466806874,9.5469062,155.46,155.44,18.64964886]
[1749466808372,9.5469062,155.46,155.44,25.08296883]
[1749466808770,9.5469062,155.45,155.44,18.64964886]
[1749466808972,6.43174988,155.48,155.44,18.64964886]
[1749466809156,9.5469062,155.45,155.44,18.64964886]
[1749466809357,6.43086816,155.5,155.44,18.64964886]
[1749466809358,6.43086816,155.5,155.44,25.08289146]
[1749466809674,9.5469062,155.45,155.44,18.64964886]
[1749466811060,9.5469062,155.45,155.44,25.08299934]
[1749466811367,9.5469062,155.45,155.44,18.64964886]
[1749466811767,9.5469062,155.45,155.43,3779.83409153]
[1749466811977,15.98025668,155.44,155.43,3779.83409153]
[1749466812166,9.5469062,155.44,155.43,3779.83409153]
[1749466821798,15.98025668,155.44,155.43,3779.83409153]
[1749466821978,25.52716288,155.44,155.43,3779.83409153]
[1749466822468,25.52716288,155.44,155.43,3694.90430959]
[1749466824182,25.52716288,155.44,155.43,3677.57512984]
[1749466824901,51.52716288,155.44,155.43,3677.57512984]
[1749466825396,51.52716288,155.44,155.43,3592.6453479]
[1749466825787,91.48716288,155.44,155.43,3592.6453479]
[1749466826093,101.35273385,155.44,155.43,3592.6453479]
[1749466826600,101.35273385,155.44,155.43,3575.31616815]
[1749466826989,107.95403385,155.44,155.43,3575.31616815]
[1749466827697,102.89645694,155.44,155.43,3575.31616815]
[1749466828003,106.0891546,155.44,155.43,3575.31616815]
[1749466828305,101.28116054,155.44,155.43,3507.71556596]
[1749466829706,101.28116054,155.44,155.43,3490.38638621]
[1749466830095,101.28116054,155.44,155.43,3466.9368237]
[1749466830096,100.67750652,155.44,155.43,3466.9368237]
[1749466830500,100.67750652,155.44,155.43,3449.06703608]
[1749466831216,86.82537954,155.44,155.43,3449.06703608]
[1749466831384,86.82537954,155.44,155.43,3416.66540126]
[1749466831986,86.82537954,155.44,155.43,3399.33622151]
[1749466832694,86.82537954,155.44,155.43,3364.67786201]
[1749466833400,86.82537954,155.44,155.43,3346.80807439]
[1749466833608,105.75935154,155.44,155.43,3334.73807439]
[1749466833989,105.75935154,155.44,155.43,3304.79828677]
[1749466834190,105.75935154,155.44,155.43,3288.70074151]
[1749466834403,105.75935154,155.44,155.43,3252.62667951]
[1749466834594,105.75935154,155.44,155.43,3236.52913425]
[1749466834791,105.75935154,155.44,155.43,3229.50845895]
[1749466834992,87.10970268,155.44,155.43,3229.50845895]
[1749466835389,81.74353452,155.44,155.43,3229.50845895]
[1749466835590,92.30353452,155.44,155.43,3212.71988707]
[1749466835813,87.50736054,155.44,155.43,3212.71988707]
[1749466836305,80.90606054,155.44,155.43,3194.85009945]
[1749466836903,16.97335048,155.44,155.43,3194.85009945]
[1749466837085,66.50025668,155.44,155.43,3194.85009945]
[1749466837483,92.50025668,155.44,155.43,3194.85009945]
[1749466838190,82.95335048,155.44,155.43,3194.85009945]
[1749466838492,92.50025668,155.44,155.43,3194.85009945]
[1749466841322,102.04716288,155.44,155.43,3194.85009945]
[1749466842191,82.95335048,155.44,155.43,3194.85009945]
[1749466842391,92.50025668,155.44,155.43,3194.85009945]
[1749466844001,52.52025668,155.44,155.43,3194.85009945]
[1749466844197,92.50025668,155.44,155.43,3194.85009945]
[1749466846810,82.95335048,155.44,155.43,3194.85009945]
[1749466847118,92.50025668,155.44,155.43,3194.85009945]
[1749466848521,82.95335048,155.44,155.43,3194.85009945]
[1749466848726,66.48025668,155.44,155.43,3194.85009945]
[1749466850617,1.9725,155.48,155.43,3194.85009945]
[1749466850618,19.25550365,155.49,155.43,3194.85009945]
[1749466850813,9.5469062,155.47,155.43,3194.85009945]
[1749466851152,55.93860159,155.48,155.43,3210.830744]
[1749466851427,15.97860159,155.48,155.43,3210.830744]
[1749466851626,46.39169539,155.48,155.44,9.5469062]
[1749466851834,55.93860159,155.48,155.44,9.5469062]
[1749466852003,55.93860159,155.48,155.43,3210.830744]
[1749466852204,16.97139247,155.49,155.44,68.15655506]
[1749466852406,9.5469062,155.49,155.45,9.5469062]
[1749466852607,9.5469062,155.49,155.43,3201.2838378]
[1749466852608,10.54,155.5,155.47,18.64964886]
[1749466852813,10.54,155.5,155.47,28.19655506]
[1749466853423,15.97721568,155.52,155.48,11.4789062]
[1749466853617,6.43030948,155.52,155.48,11.4789062]
[1749466853817,15.97721568,155.52,155.48,11.4789062]
[1749466854037,50.5,155.53,155.49,9.5469062]
[1749466854038,10.54,155.53,155.49,9.5469062]
[1749466854328,26.51656574,155.53,155.49,18.64964886]
[1749466855509,26.51656574,155.53,155.49,28.19655506]
[1749466855734,26.51656574,155.53,155.49,18.64964886]
[1749466855914,16.96965954,155.53,155.49,18.64964886]
[1749466856116,26.51656574,155.53,155.49,18.64964886]
[1749466856308,9.5469062,155.52,155.49,18.64964886]
[1749466856509,9.5469062,155.52,155.48,41.892]
[1749466856928,9.5469062,155.51,155.48,41.892]
[1749466857431,6.43040111,155.52,155.48,41.892]
[1749466857608,10.54,155.53,155.49,9.5469062]
[1749466857807,10.54,155.53,155.5,28.19655506]
[1749466858412,9.5469062,155.56,155.52,9.5469062]
[1749466858622,9.5469062,155.56,155.5,39.94]
[1749466858623,15.97540335,155.56,155.51,28.19655506]
[1749466858828,9.5469062,155.54,155.51,18.64964886]
[1749466859404,9.5469062,155.53,155.5,39.94]
[1749466859611,15.97682997,155.53,155.49,18.64964886]
[1749466860335,15.97682997,155.53,155.48,51.4189062]
[1749466860336,9.5469062,155.51,155.48,41.872]
[1749466860913,9.5469062,155.51,155.48,1.932]
[1749466863639,9.5469062,155.51,155.44,1.9702]
[1749466863640,9.5469062,155.49,155.44,1.9702]
[1749466863822,10.52,155.51,155.45,18.64964886]
[1749466863823,9.5469062,155.47,155.45,18.64964886]
[1749466864616,50.46,155.51,155.45,18.64964886]
[1749466864832,50.46,155.51,155.46,9.5469062]
[1749466864833,10.52,155.51,155.46,9.5469062]
[1749466865246,20.0669062,155.51,155.46,9.5469062]
[1749466865416,26.49749589,155.51,155.46,9.5469062]
[1749466865613,20.0669062,155.51,155.47,9.5469062]
[1749466865814,10.52,155.51,155.48,18.64964886]
[1749466866018,6.42921435,155.54,155.48,9.5469062]
[1749466866217,20.0669062,155.54,155.5,9.5469062]
[1749466866439,10.52,155.54,155.51,18.64964886]
[1749466866949,10.52,155.54,155.51,28.19655506]
[1749466867244,10.52,155.54,155.51,18.64964886]
[1749466867543,9.5469062,155.55,155.51,28.19655506]
[1749466867726,15.97535362,155.56,155.51,28.19655506]
[1749466868130,15.97535362,155.56,155.52,9.5469062]
[1749466868653,6.42844742,155.56,155.52,9.5469062]
[1749466868951,6.42844742,155.56,155.51,28.19655506]
[1749466868952,15.97535362,155.56,155.51,28.19655506]
[1749466869452,9.5469062,155.55,155.51,28.19655506]
[1749466870253,9.5469062,155.55,155.51,18.64964886]
[1749466870551,9.5469062,155.53,155.51,18.64964886]
[1749466870850,22.4979109,155.57,155.5,41.9102]
[1749466870851,9.5469062,155.52,155.5,41.9102]
[1749466871031,9.5469062,155.52,155.5,1.9702]
[1749466871222,22.4979109,155.57,155.48,26.71634886]
[1749466871223,9.5469062,155.51,155.48,26.71634886]
[1749466871423,9.5469062,155.49,155.46,2.0623]
[1749466871622,9.5469062,155.48,155.46,2.0623]
[1749466872022,10.52,155.52,155.46,2.0623]
[1749466872228,20.0669062,155.52,155.47,28.19655506]
[1749466873156,20.0669062,155.52,155.47,34.62855325]
[1749466873337,20.0669062,155.52,155.49,18.64964886]
[1749466873956,26.49700633,155.52,155.49,18.64964886]
[1749466874161,20.0669062,155.52,155.49,18.64964886]
[1749466874522,9.5469062,155.51,155.49,18.64964886]
[1749466874742,9.5469062,155.51,155.47,18.64964886]
[1749466874953,9.5469062,155.49,155.47,18.64964886]
[1749466875338,9.5469062,155.5,155.47,18.64964886]
[1749466876946,9.5469062,155.51,155.47,25.081725]
[1749466877148,20.0669062,155.52,155.47,34.6286312]
[1749466877357,10.52,155.52,155.49,18.64964886]
[1749466878744,9.5469062,155.53,155.49,28.19655506]
[1749466879137,9.5469062,155.53,155.49,34.62779946]
[1749466879338,9.5469062,155.53,155.49,18.64964886]
[1749466879843,9.5469062,155.53,155.49,25.08091364]
[1749466880234,9.5469062,155.53,155.49,34.62781984]
[1749466881186,9.5469062,155.54,155.51,18.64964886]
[1749466881367,42.94847352,155.56,155.51,18.64964886]
[1749466881368,20.0669062,155.56,155.51,9.5469062]
[1749466882266,20.0669062,155.56,155.53,18.64964886]
[1749466882267,10.52,155.56,155.53,18.64964886]
[1749466882636,10.52,155.56,155.53,9.5469062]
[1749466883062,9.5469062,155.57,155.53,9.0469062]
[1749466883250,15.97494417,155.57,155.52,34.62626431]
[1749466883451,9.5469062,155.55,155.51,2.0212]
[1749466883657,9.5469062,155.55,155.49,34.2087]
[1749466883658,9.5469062,155.53,155.49,24.18661067]
[1749466883855,9.5469062,155.53,155.49,18.64964886]
[1749466884044,9.5469062,155.52,155.49,18.64964886]
[1749466884740,9.5469062,155.53,155.49,18.64964886]
[1749466884959,9.5469062,155.54,155.49,28.19655506]
[1749466885775,15.97624246,155.54,155.49,18.64964886]
[1749466885969,9.5469062,155.53,155.49,28.19655506]
[1749466886272,9.5469062,155.53,155.49,34.6278081]
[1749466886776,9.5469062,155.54,155.49,34.6278081]
[1749466887866,57.94143636,155.57,155.49,18.64964886]
[1749466887867,9.5469062,155.53,155.49,18.64964886]
[1749466888055,10.52,155.54,155.45,24.18814041]
[1749466888256,9.5469062,155.49,155.46,18.64964886]
[1749466888453,9.5469062,155.5,155.46,18.64964886]
[1749466889159,9.5469062,155.49,155.46,18.64964886]
[1749466890780,26.59330289,155.54,155.45,18.64964886]
[1749466890781,9.5469062,155.47,155.45,18.64964886]
[1749466891076,49.4669062,155.52,155.43,3194.85009945]
[1749466891077,9.5469062,155.46,155.43,3194.85009945]
[1749466891284,9.5469062,155.44,155.43,3194.85009945]
[1749466892780,15.98025668,155.44,155.43,3194.85009945]